bitfinex/quotes_BTCUSD_20250303
["timestamp","ask_amount","ask_price","bid_price","bid_amount"]
[1740992624145,0.18003851,91693.0,91690.0,0.0473396]
[1740992624146,0.218109,91698.0,91694.0,0.07974124]
[1740992624374,0.001,91700.0,91694.0,0.07974124]
[1740992624588,0.00290861,91700.0,91694.0,0.07974124]
[1740992624824,0.164576,91700.0,91699.0,0.03974124]
[1740992625048,0.01554085,91700.0,91699.0,0.03274124]
[1740992625253,0.17811685,91700.0,91699.0,0.03274124]
[1740992625463,0.17811685,91700.0,91699.0,0.03174124]
[1740992625668,0.16575893,91713.0,91712.0,0.03174124]
[1740992625874,0.00220593,91713.0,91712.0,0.07874124]
[1740992626454,0.00220593,91713.0,91712.0,0.07774124]
[1740992627008,0.00220593,91713.0,91712.0,0.08174124]
[1740992627235,0.00220593,91713.0,91712.0,0.24529624]
[1740992627700,0.00220593,91713.0,91712.0,0.54529624]
[1740992628712,0.00220593,91713.0,91712.0,0.54829624]
[1740992629344,0.00220593,91713.0,91712.0,0.52139624]
[1740992629553,0.00220593,91713.0,91712.0,0.57539624]
[1740992629751,0.00220593,91713.0,91712.0,0.88239624]
[1740992629905,0.00220593,91713.0,91712.0,0.86839624]
[1740992630295,0.00220593,91713.0,91712.0,0.33774124]
[1740992630525,0.00220593,91713.0,91712.0,0.054]
[1740992630744,0.00220593,91713.0,91712.0,0.04792216]
[1740992630950,0.00220593,91713.0,91712.0,0.09492216]
[1740992631154,0.16575893,91713.0,91712.0,0.04792216]
[1740992631355,0.16575893,91713.0,91712.0,0.05492216]
[1740992631578,0.16575893,91713.0,91712.0,0.06418092]
[1740992631799,0.18029978,91713.0,91712.0,0.07118092]
[1740992632002,0.18029978,91713.0,91712.0,0.06418092]
[1740992632206,0.18029978,91713.0,91712.0,0.054]
[1740992632464,0.18029978,91713.0,91712.0,0.068]
[1740992632877,0.18029978,91713.0,91712.0,0.047]
[1740992633112,0.18029978,91713.0,91712.0,0.054]
[1740992633317,0.00220593,91713.0,91712.0,0.09174124]
[1740992633542,0.16575893,91713.0,91712.0,0.09208084]
[1740992633992,0.18029978,91713.0,91712.0,0.0143396]
[1740992635216,0.16575893,91713.0,91712.0,0.0143396]
[1740992635625,0.01674678,91713.0,91712.0,0.0143396]
[1740992635996,0.18029978,91713.0,91712.0,0.0143396]
[1740992636452,0.18220817,91713.0,91712.0,0.0143396]
[1740992636603,0.00220593,91713.0,91712.0,0.0143396]
[1740992636799,0.00220593,91713.0,91712.0,0.09208084]
[1740992637073,0.00220593,91713.0,91712.0,0.08508084]
[1740992637483,0.16575893,91713.0,91712.0,0.03808084]
[1740992637699,0.18220808,91713.0,91712.0,0.0003396]
[1740992637920,0.18029978,91713.0,91712.0,0.0003396]
[1740992638131,0.1822082,91713.0,91712.0,0.0073396]
[1740992638552,0.1822082,91713.0,91712.0,0.0003396]
[1740992638932,0.1822082,91713.0,91712.0,0.0143396]
[1740992639195,0.18029978,91713.0,91712.0,0.0143396]
[1740992639412,0.18029978,91713.0,91712.0,0.0073396]
[1740992639616,0.18029978,91713.0,91712.0,0.0143396]
[1740992639819,0.00220593,91713.0,91712.0,0.04508084]
[1740992639992,0.00220593,91713.0,91712.0,0.09208084]
[1740992640200,0.00220593,91713.0,91712.0,0.08508084]
[1740992640437,0.00220593,91713.0,91712.0,0.24863584]
[1740992640844,0.00220593,91713.0,91712.0,0.24163584]
[1740992641051,0.00220593,91713.0,91712.0,0.25398757]
[1740992641258,0.00220593,91713.0,91712.0,0.25998757]
[1740992641667,0.00220593,91713.0,91712.0,0.25398757]
[1740992641870,0.00220593,91713.0,91712.0,0.24163584]
[1740992642043,0.00220593,91713.0,91712.0,0.25563584]
[1740992642277,0.00220593,91713.0,91712.0,0.0143396]
[1740992642494,0.00220593,91713.0,91712.0,0.13868084]
[1740992642734,0.00220593,91713.0,91712.0,0.60223584]
[1740992642911,0.00220593,91713.0,91712.0,0.60923584]
[1740992643155,0.00220593,91713.0,91712.0,0.14568084]
[1740992643356,0.00220593,91713.0,91712.0,0.34923584]
[1740992643668,0.00220593,91713.0,91712.0,0.35623584]
[1740992644290,0.00220593,91713.0,91712.0,1.22713584]
[1740992644487,0.00201,91729.0,91728.0,0.24126724]
[1740992644692,0.00201,91729.0,91728.0,0.54126724]
[1740992644889,0.00201,91729.0,91728.0,1.58566724]
[1740992645096,0.0004,91739.0,91738.0,0.54125024]
[1740992645315,0.0004,91739.0,91738.0,1.46215024]
[1740992645517,0.00201,91744.0,91743.0,0.54124124]
[1740992645692,0.00213051,91744.0,91743.0,0.64164124]
[1740992645896,0.00213051,91744.0,91743.0,1.64354124]
[1740992646096,0.00213051,91744.0,91743.0,1.70388209]
[1740992646340,0.0003402,91749.0,91748.0,0.60577309]
[1740992646560,0.00074183,91749.0,91748.0,0.60577309]
[1740992646915,0.00074183,91749.0,91748.0,0.55877309]
[1740992647122,0.00074183,91749.0,91748.0,1.52667309]
[1740992647332,7e-05,91769.0,91759.0,0.54121224]
[1740992647537,7e-05,91769.0,91759.0,1.41211224]
[1740992648362,0.00201,91837.0,91804.0,0.62153224]
[1740992648569,0.00029032,91805.0,91804.0,0.72221224]
[1740992649840,0.00029032,91805.0,91804.0,0.72421224]
[1740992650280,0.00029032,91805.0,91804.0,0.72221224]
[1740992650483,0.00029032,91805.0,91804.0,0.77221224]
[1740992650937,0.00029032,91805.0,91804.0,1.66465309]
[1740992651286,0.00029032,91805.0,91804.0,1.71465309]
[1740992651530,0.00201,91837.0,91804.0,1.71465309]
[1740992651531,0.00201,91837.0,91805.0,0.49228209]
[1740992652120,0.00201,91837.0,91805.0,0.39528209]
[1740992652461,0.00201,91837.0,91821.0,0.60564309]
[1740992652906,0.00201,91837.0,91836.0,0.510334]
[1740992653108,0.00201,91837.0,91836.0,0.64155524]
[1740992653109,0.00213039,91837.0,91836.0,0.64155524]
[1740992653313,0.00213039,91837.0,91836.0,0.65428039]
[1740992653519,0.00213039,91837.0,91836.0,0.96865524]
[1740992653954,0.00213039,91837.0,91836.0,0.92165524]
[1740992654179,0.00213039,91837.0,91836.0,1.64265524]
[1740992654383,0.00213039,91837.0,91836.0,1.69265524]
[1740992654797,3.9e-07,91837.0,91836.0,1.75719609]
[1740992655001,0.00201,91853.0,91852.0,0.54104724]
[1740992655214,0.00201,91868.0,91867.0,0.67262024]
[1740992655432,0.00190438,91923.0,91883.0,0.54099224]
[1740992655641,0.09606313,91926.0,91883.0,0.54099224]
[1740992655642,1e-06,91884.0,91883.0,0.59099224]
[1740992655850,0.09606313,91926.0,91893.0,0.59097424]
[1740992656060,0.09606313,91926.0,91893.0,0.54097424]
[1740992656260,0.01430508,91894.0,91893.0,0.54097424]
[1740992656475,0.01430508,91894.0,91893.0,0.49397424]
[1740992656680,0.01430508,91894.0,91893.0,0.54097424]
[1740992656884,0.01430508,91894.0,91893.0,0.510233]
[1740992657087,0.01430508,91894.0,91893.0,0.43142124]
[1740992657297,0.01430508,91894.0,91891.0,0.03074124]
[1740992657503,0.01430508,91894.0,91893.0,0.07774124]
[1740992658410,0.01430508,91894.0,91893.0,0.38474124]
[1740992658617,0.01430508,91894.0,91893.0,0.37774124]
[1740992658829,0.01430508,91894.0,91893.0,0.007]
[1740992659057,0.01430508,91894.0,91893.0,0.04474124]
[1740992659288,0.01454085,91892.0,91883.0,0.03074124]
[1740992659498,0.163261,91877.0,91876.0,0.047]
[1740992659675,0.163261,91877.0,91874.0,0.03074124]
[1740992659676,0.163265,91875.0,91874.0,0.03074124]
[1740992660032,0.00190482,91876.0,91868.0,0.03074124]
[1740992660237,0.21958982,91876.0,91868.0,0.03074124]
[1740992660435,0.163267,91874.0,91872.0,0.047]
[1740992660634,0.00190482,91876.0,91871.0,0.047]
[1740992660835,0.23220185,91886.0,91871.0,0.047]
[1740992661038,0.01454085,91884.0,91859.0,0.03074124]
[1740992661239,0.00190513,91883.0,91851.0,0.047]
[1740992661487,0.00190513,91883.0,91827.0,0.3271]
[1740992661488,0.01454085,91866.0,91843.0,0.03074124]
[1740992661702,0.0019055,91865.0,91854.0,0.03074124]
[1740992661914,0.163309,91850.0,91848.0,0.047]
[1740992662117,0.0019055,91865.0,91851.0,0.03074124]
[1740992662331,0.163305,91853.0,91851.0,0.03074124]
[1740992662537,0.0019053,91852.0,91840.0,0.03074124]
[1740992662749,0.0784,91867.0,91852.0,0.047]
[1740992662750,0.00040123,91853.0,91852.0,0.047]
[1740992662956,0.00040123,91853.0,91852.0,0.24104724]
[1740992663374,0.00040123,91853.0,91852.0,0.24257139]
[1740992663579,0.00040123,91853.0,91852.0,0.24104724]
[1740992663990,0.00040123,91853.0,91852.0,0.54257121]
[1740992664197,0.00040123,91853.0,91852.0,0.54104724]
[1740992664402,0.00040123,91853.0,91852.0,0.07774124]
[1740992665227,0.00040123,91853.0,91852.0,0.08474124]
[1740992665436,0.00040123,91853.0,91852.0,0.007]
[1740992665637,0.00230663,91853.0,91852.0,0.007]
[1740992665847,0.00230663,91853.0,91852.0,0.014]
[1740992666278,0.31684748,91853.0,91852.0,0.014]
[1740992666482,0.163363,91821.0,91819.0,0.10112]
[1740992666695,0.163352,91826.0,91825.0,0.03074124]
[1740992666870,0.00190583,91849.0,91829.0,0.047]
[1740992667103,0.163342,91832.0,91829.0,0.047]
[1740992667306,0.163345,91830.0,91829.0,0.047]
[1740992667509,0.00190578,91843.0,91825.0,0.03074124]
[1740992667713,0.00190578,91843.0,91730.0,0.05424697]
[1740992667714,0.163378,91812.0,91811.0,0.03074124]
[1740992667920,0.163383,91809.0,91807.0,0.03074124]
[1740992668131,0.163386,91807.0,91806.0,0.10088]
[1740992668357,0.00190617,91808.0,91798.0,0.03074124]
[1740992668568,0.01454085,91825.0,91800.0,0.047]
[1740992668774,0.00190636,91824.0,91807.0,0.047]
[1740992669193,0.00190636,91824.0,91819.0,0.007]
[1740992669397,0.0823,91851.0,91827.0,0.047]
[1740992669612,0.0823,91851.0,91825.0,0.07774124]
[1740992669613,0.217759,91845.0,91825.0,0.07774124]
[1740992669815,0.00190582,91844.0,91825.0,0.07774124]
[1740992670027,0.00190582,91844.0,91806.0,0.217849]
[1740992670028,0.00190582,91844.0,91832.0,0.03074124]
[1740992670242,0.00190562,91848.0,91842.0,0.03074124]
[1740992670449,0.00190547,91857.0,91843.0,0.047]
[1740992670664,0.0751,91875.0,91846.0,0.047]
[1740992670665,0.163299,91856.0,91846.0,0.047]
[1740992670878,0.00040123,91858.0,91846.0,0.047]
[1740992670879,0.00190539,91855.0,91853.0,0.163302]
[1740992671091,0.00040123,91858.0,91857.0,0.03074124]
[1740992671233,0.00040123,91858.0,91857.0,0.07774124]
[1740992672055,0.00040123,91858.0,91857.0,0.07574124]
[1740992673306,0.00040123,91858.0,91857.0,0.23903824]
[1740992673685,0.00040123,91858.0,91857.0,0.210297]
[1740992673909,0.00040123,91858.0,91857.0,0.24056225]
[1740992674061,0.00040123,91858.0,91857.0,0.24056215]
[1740992674267,0.00040123,91858.0,91857.0,0.23903824]
[1740992674466,0.00040123,91858.0,91857.0,0.047]
[1740992674646,0.00040123,91858.0,91857.0,0.23903824]
[1740992675265,0.00040123,91858.0,91857.0,0.25203824]
[1740992675715,0.00040123,91858.0,91857.0,0.23903824]
[1740992676066,0.00040123,91858.0,91857.0,0.86766205]
[1740992676264,0.00040123,91858.0,91857.0,1.43847909]
[1740992676894,2.3e-07,91858.0,91857.0,1.43847909]
[1740992677098,2.3e-07,91858.0,91857.0,1.48847909]
[1740992677302,2.3e-07,91858.0,91857.0,1.43847909]
[1740992677506,2.3e-07,91858.0,91857.0,1.36993824]
[1740992677665,2.3e-07,91858.0,91857.0,1.41693824]
[1740992677889,2.3e-07,91858.0,91857.0,1.37693824]
[1740992678296,2.3e-07,91858.0,91857.0,1.41693824]
[1740992678507,2.3e-07,91858.0,91857.0,1.341197]
[1740992678707,2.3e-07,91858.0,91857.0,0.55303824]
[1740992679135,2.3e-07,91858.0,91857.0,0.54603824]
[1740992679565,2.3e-07,91858.0,91857.0,0.477297]
[1740992679759,2.3e-07,91858.0,91857.0,0.24603824]
[1740992680002,2.3e-07,91858.0,91857.0,0.05552393]
[1740992680215,2.3e-07,91858.0,91857.0,0.08274124]
[1740992680624,0.16329523,91858.0,91857.0,0.08274124]
[1740992680848,2.3e-07,91858.0,91852.0,0.047]
[1740992681058,2.3e-07,91858.0,91821.0,0.5438]
[1740992681059,2.3e-07,91858.0,91840.0,0.02874124]
[1740992681271,2.3e-07,91858.0,91826.0,0.02874124]
[1740992681482,0.217734,91856.0,91828.0,0.02874124]
[1740992681695,0.46329523,91858.0,91857.0,0.007]
[1740992681895,0.46329523,91858.0,91857.0,0.0073392]
[1740992682120,0.46346483,91858.0,91857.0,0.0073392]
[1740992682524,0.46346483,91858.0,91857.0,0.0003392]
[1740992682728,0.00016983,91858.0,91857.0,0.0003392]
[1740992683037,0.16346483,91858.0,91857.0,0.0003392]
[1740992683591,0.16346483,91858.0,91857.0,0.0053392]
[1740992683592,0.00207512,91858.0,91857.0,0.0053392]
[1740992683799,0.00016983,91858.0,91857.0,0.0053392]
[1740992684008,0.16346483,91858.0,91857.0,0.0053392]
[1740992684244,0.16537009,91858.0,91857.0,0.0053392]
[1740992684392,0.16346483,91858.0,91857.0,0.0053392]
[1740992684588,0.16537017,91858.0,91857.0,0.0103392]
[1740992684990,0.16537017,91858.0,91857.0,0.0013392]
[1740992684991,0.46537017,91858.0,91857.0,0.0013392]
[1740992685190,0.46346483,91858.0,91857.0,0.0013392]
[1740992685481,0.47800568,91858.0,91857.0,0.006]
[1740992685656,0.02125876,91854.0,91824.0,0.047]
[1740992685892,0.02125876,91854.0,91819.0,0.02874124]
[1740992685893,0.163363,91820.0,91819.0,0.02874124]
[1740992686100,0.217814,91822.0,91814.0,0.047]
[1740992686309,0.217852,91806.0,91803.0,0.047]
[1740992686515,0.0019059,91820.0,91804.0,0.07574124]
[1740992686725,0.0019059,91820.0,91815.0,0.047]
[1740992686929,0.163375,91813.0,91809.0,0.047]
[1740992687137,0.00190609,91842.0,91815.0,0.047]
[1740992687343,0.00190609,91842.0,91796.0,0.00352497]
[1740992687344,0.00190609,91842.0,91822.0,0.02874124]
[1740992687552,0.163357,91824.0,91822.0,0.02874124]
[1740992687759,0.00190609,91842.0,91822.0,0.02874124]
[1740992687960,0.163342,91832.0,91822.0,0.02874124]
[1740992688133,0.00811551,91854.0,91827.0,0.02874124]
[1740992688390,0.0019056,91853.0,91829.0,0.02874124]
[1740992688604,0.163348,91828.0,91827.0,0.047]
[1740992689278,0.217746,91850.0,91833.0,0.02874124]
[1740992689444,0.00805244,91860.0,91837.0,0.047]
[1740992689445,0.0019056,91849.0,91837.0,0.047]
[1740992689783,0.00207517,91858.0,91843.0,0.217762]
[1740992689896,0.0001696,91858.0,91845.0,0.047]
[1740992690100,0.163316,91846.0,91845.0,0.047]
[1740992690500,0.217755,91846.0,91845.0,0.047]
[1740992690733,0.163343,91831.0,91829.0,0.32874124]
[1740992690941,0.217753,91847.0,91827.0,0.000401]
[1740992691138,0.163348,91828.0,91827.0,0.000401]
[1740992692020,0.00190581,91829.0,91827.0,0.000401]
[1740992692221,0.163348,91828.0,91827.0,0.000401]
[1740992692440,0.163348,91828.0,91827.0,0.007401]
[1740992693392,0.163348,91828.0,91827.0,0.013401]
[1740992693595,0.163348,91828.0,91827.0,0.007401]
[1740992693796,0.163348,91828.0,91827.0,0.000401]
[1740992693950,0.163348,91828.0,91827.0,0.006401]
[1740992694160,0.163348,91828.0,91827.0,0.012401]
[1740992694358,0.163348,91828.0,91827.0,0.006401]
[1740992694761,0.163348,91828.0,91827.0,0.010401]
[1740992694965,0.3,91827.0,91798.0,0.00814224]
[1740992695235,0.1634,91799.0,91798.0,0.00826263]
[1740992695438,0.00190633,91810.0,91798.0,0.00826263]
[1740992695661,0.163397,91801.0,91798.0,0.00826263]
[1740992696019,0.217849,91807.0,91798.0,0.00826263]
[1740992696221,0.163391,91805.0,91798.0,0.00826263]
[1740992696452,0.00190632,91804.0,91798.0,0.00012039]
[1740992696624,0.163398,91800.0,91798.0,0.00012039]
[1740992696845,0.00190632,91813.0,91798.0,0.00012039]
[1740992697049,0.1634,91799.0,91798.0,0.00712039]
[1740992697260,0.00190638,91800.0,91798.0,0.01312039]
[1740992697463,0.163367,91818.0,91809.0,0.163382]
[1740992697689,0.00190622,91817.0,91808.0,0.00814224]
[1740992697935,0.00810382,91833.0,91813.0,0.047]
[1740992698158,0.00810382,91833.0,91808.0,0.00814224]
[1740992698159,0.00190598,91832.0,91818.0,0.047]
[1740992698362,0.00810382,91833.0,91832.0,0.163341]
[1740992698773,0.00207525,91858.0,91830.0,0.00814224]
[1740992698989,0.163318,91845.0,91836.0,0.163334]
[1740992699205,0.00190561,91852.0,91836.0,0.047]
[1740992699426,0.00190561,91852.0,91822.0,0.3]
[1740992699427,0.0001696,91858.0,91845.0,0.00814224]
[1740992699640,0.0001696,91858.0,91844.0,0.047]
[1740992699641,0.0001696,91858.0,91857.0,0.163297]
[1740992699814,0.0001696,91858.0,91857.0,0.21843924]
[1740992699815,0.00057083,91858.0,91857.0,0.21843924]
[1740992700056,0.00057083,91858.0,91857.0,0.21996323]
[1740992700271,0.00057083,91858.0,91857.0,0.21843924]
[1740992700451,0.00057083,91858.0,91857.0,0.70922404]
[1740992700681,0.00057083,91858.0,91857.0,0.70770009]
[1740992701102,0.00057083,91858.0,91857.0,1.03980009]
[1740992701318,0.00190442,91906.0,91857.0,1.03980009]
[1740992701319,0.09606313,91919.0,91893.0,0.05514224]
[1740992701523,0.01419344,91894.0,91893.0,0.047]
[1740992701678,0.01419344,91894.0,91893.0,0.05514224]
[1740992701881,0.01419344,91894.0,91893.0,0.047]
[1740992702050,0.217661,91886.0,91882.0,0.00814224]
[1740992702242,0.00190457,91893.0,91879.0,0.00814224]
[1740992702454,0.00190457,91893.0,91882.0,0.00814224]
[1740992702870,0.00190457,91893.0,91882.0,0.05514224]
[1740992703069,0.217649,91891.0,91874.0,0.00814224]
[1740992703348,0.01419344,91894.0,91872.0,0.00814224]
[1740992703349,0.163264,91876.0,91872.0,0.00814224]
[1740992703551,0.00190468,91888.0,91887.0,0.00814224]
[1740992703756,0.01419344,91894.0,91893.0,0.05514224]
[1740992704052,0.01419344,91894.0,91893.0,0.00814224]
[1740992704507,0.01419344,91894.0,91888.0,0.00814224]
[1740992704723,0.163233,91893.0,91888.0,0.05514224]
[1740992704924,0.01609789,91894.0,91888.0,0.05514224]
[1740992705124,0.23373989,91894.0,91882.0,0.00814224]
[1740992705343,0.01609789,91894.0,91886.0,0.00814224]
[1740992705548,0.163267,91874.0,91873.0,0.33524224]
[1740992705668,0.163251,91883.0,91882.0,0.004]
[1740992705871,0.16515576,91883.0,91882.0,0.004]
[1740992706075,0.16515576,91883.0,91869.0,0.047]
[1740992706076,0.00190476,91883.0,91869.0,0.047]
[1740992706273,0.3,91892.0,91865.0,0.00814224]
[1740992706501,0.01419344,91894.0,91882.0,0.007]
[1740992706700,0.163251,91883.0,91882.0,0.007]
[1740992706906,0.00190492,91883.0,91859.0,0.00814224]
[1740992707061,0.00190492,91883.0,91852.0,0.09812]
[1740992707284,0.217722,91860.0,91845.0,0.047]
[1740992707475,0.217727,91858.0,91845.0,0.0003406]
[1740992707703,0.00190521,91857.0,91853.0,0.00814224]
[1740992708104,0.00190522,91862.0,91847.0,0.00814224]
[1740992708300,0.00190534,91875.0,91846.0,0.00814224]
[1740992708510,0.36285876,91874.0,91845.0,0.0003406]
[1740992708712,0.00190549,91873.0,91847.0,0.047]
[1740992708930,0.00190549,91873.0,91848.0,0.163313]
[1740992709131,0.163301,91855.0,91848.0,0.163313]
[1740992709342,0.00190533,91869.0,91853.0,0.00814224]
[1740992709686,0.00190533,91869.0,91845.0,0.0003406]
[1740992709687,0.163316,91846.0,91845.0,0.0003406]
[1740992711034,0.163316,91846.0,91845.0,0.00074183]
[1740992711420,0.00190559,91847.0,91846.0,0.00814224]
[1740992711593,0.217676,91880.0,91869.0,0.163274]
[1740992711966,0.001905,91879.0,91873.0,0.00814224]
[1740992712167,0.00814162,91885.0,91875.0,0.17140724]
[1740992712395,0.17138862,91885.0,91875.0,0.21840724]
[1740992712612,0.00190462,91884.0,91860.0,0.047]
[1740992712828,0.00190462,91884.0,91875.0,0.00814224]
[1740992713033,0.00190485,91883.0,91871.0,0.00814224]
[1740992713238,0.217675,91880.0,91871.0,0.00814224]
[1740992713443,0.00219548,91876.0,91852.0,0.00814224]
[1740992713647,0.00219548,91876.0,91869.0,0.005]
[1740992713853,0.163274,91870.0,91869.0,0.011]
[1740992714066,0.16517915,91870.0,91869.0,0.011]
[1740992714276,0.16517915,91870.0,91869.0,0.005]
[1740992714919,0.83113691,91870.0,91869.0,0.005]
[1740992715124,0.3241,91870.0,91837.0,0.047]
[1740992715331,0.163347,91829.0,91828.0,0.09848]
[1740992715536,0.01454085,91864.0,91821.0,0.14385892]
[1740992715745,0.163359,91822.0,91821.0,0.09685892]
[1740992716765,0.163359,91822.0,91821.0,0.09726015]
[1740992717440,0.48089985,91822.0,91821.0,0.09726015]
[1740992717648,0.56289985,91822.0,91821.0,0.09726015]
[1740992718062,0.463359,91822.0,91821.0,0.09726015]
[1740992718298,0.466359,91822.0,91821.0,0.09726015]
[1740992718750,0.466359,91822.0,91821.0,0.00040123]
[1740992719212,0.466359,91822.0,91821.0,0.00640123]
[1740992719444,0.466359,91822.0,91821.0,0.01140123]
[1740992719929,0.463359,91822.0,91821.0,0.01140123]
[1740992720173,0.217836,91812.0,91799.0,0.1634]
[1740992720380,0.00190635,91811.0,91796.0,0.00012039]
[1740992720783,0.00190635,91811.0,91802.0,0.163394]
[1740992720987,0.00190635,91811.0,91796.0,0.00012039]
[1740992721199,0.163404,91797.0,91796.0,0.00012039]
[1740992721613,0.16531063,91797.0,91796.0,0.00512039]
[1740992721816,0.02890322,91837.0,91796.0,0.00512039]
[1740992722021,0.00190636,91821.0,91805.0,0.163389]
[1740992722263,0.163375,91814.0,91805.0,0.163389]
[1740992722497,0.163375,91814.0,91796.0,0.00512039]
[1740992722498,0.098,91850.0,91801.0,0.03340123]
[1740992722706,0.098,91850.0,91808.0,0.03340123]
[1740992722707,0.04765769,91840.0,91808.0,0.03340123]
[1740992722923,0.163391,91804.0,91797.0,0.3271]
[1740992723132,0.217777,91837.0,91802.0,0.03340123]
[1740992723350,0.217777,91837.0,91796.0,0.00512039]
[1740992723351,0.003,91822.0,91796.0,0.00512039]
[1740992723571,0.0019063,91821.0,91799.0,0.03340123]
[1740992723990,0.00190609,91835.0,91809.0,0.217843]
[1740992724201,0.00190609,91835.0,91796.0,0.00612039]
[1740992724202,0.217806,91825.0,91796.0,0.00012039]
[1740992724402,0.00190636,91824.0,91796.0,0.00012039]
[1740992724553,0.163404,91797.0,91796.0,0.00212039]
[1740992724760,0.3,91822.0,91796.0,0.00012039]
[1740992725084,0.163404,91797.0,91796.0,0.00012039]
[1740992725289,0.30190649,91819.0,91796.0,0.00012039]
[1740992725520,0.217822,91818.0,91796.0,0.00012039]
[1740992725757,0.00190649,91817.0,91796.0,0.00012039]
[1740992726025,0.163394,91803.0,91796.0,0.00012039]
[1740992726250,0.00190649,91802.0,91796.0,0.00012039]
[1740992726471,0.163404,91797.0,91796.0,0.00012039]
[1740992726701,0.00190649,91811.0,91796.0,0.00012039]
[1740992726923,0.001,91797.0,91796.0,0.00612039]
[1740992727148,0.164404,91797.0,91796.0,0.00612039]
[1740992727375,0.16631049,91797.0,91796.0,0.00512039]
[1740992727602,0.16631049,91797.0,91796.0,0.01112039]
[1740992727817,0.16531049,91797.0,91796.0,0.00512039]
[1740992728226,0.16631049,91797.0,91796.0,0.01112039]
[1740992728432,0.001,91797.0,91796.0,0.17452539]
[1740992728629,0.001,91797.0,91796.0,0.16952539]
[1740992729054,0.001,91797.0,91796.0,0.17452539]
[1740992729055,0.002,91797.0,91796.0,0.17452539]
[1740992729750,0.002,91797.0,91796.0,0.58835155]
[1740992729943,0.002,91797.0,91796.0,0.58682662]
[1740992730184,0.001,91797.0,91796.0,0.62962662]
[1740992730421,0.16524775,91832.0,91796.0,1.34666247]
[1740992730631,0.00190575,91832.0,91831.0,0.15829102]
[1740992730847,0.00190575,91832.0,91825.0,0.03240123]
[1740992730848,0.3241,91869.0,91829.0,0.03240123]
[1740992731057,0.3242703,91870.0,91839.0,0.03240123]
[1740992731276,0.00190528,91869.0,91843.0,0.03240123]
[1740992731495,0.00190528,91869.0,91843.0,0.03140123]
[1740992731947,0.00230651,91869.0,91843.0,0.03140123]
[1740992732147,0.16332,91844.0,91843.0,0.03140123]
[1740992732352,0.00190542,91867.0,91832.0,0.3271]
[1740992732556,0.217708,91866.0,91832.0,0.3271]
[1740992732760,0.16332,91844.0,91843.0,0.001]
[1740992733195,0.16522574,91844.0,91843.0,0.001]
[1740992733425,0.00440123,91869.0,91844.0,0.03140123]
[1740992733673,0.00440123,91869.0,91826.0,0.3]
[1740992733674,0.007,91867.0,91854.0,0.217736]
[1740992733872,0.007,91867.0,91866.0,0.163281]
[1740992734117,0.007,91867.0,91861.0,0.03140123]
[1740992734537,0.21771,91865.0,91854.0,0.3271]
[1740992734740,0.007,91867.0,91861.0,0.03140123]
[1740992734965,0.163288,91863.0,91860.0,0.03140123]
[1740992735139,0.00040123,91869.0,91854.0,0.3271]
[1740992735140,0.00040123,91869.0,91861.0,0.03140123]
[1740992735393,0.00230613,91869.0,91859.0,0.03140123]
[1740992735595,0.00040123,91869.0,91861.0,0.03540123]
[1740992735807,0.00040123,91869.0,91861.0,0.03140123]
[1740992736189,0.163288,91862.0,91861.0,0.001]
[1740992736425,0.00040123,91869.0,91862.0,0.03140123]
[1740992736626,0.00040123,91869.0,91854.0,0.3271]
[1740992736627,0.00040123,91869.0,91868.0,0.163277]
[1740992736803,0.00040123,91869.0,91868.0,0.03140123]
[1740992737011,0.163288,91862.0,91861.0,0.003]
[1740992737217,0.50040123,91869.0,91868.0,0.03140123]
[1740992737425,0.217713,91864.0,91861.0,0.003]
[1740992737635,0.163288,91862.0,91861.0,0.003]
[1740992737837,0.163288,91862.0,91861.0,0.03440123]
[1740992738050,0.00190497,91862.0,91854.0,0.3271]
[1740992738264,0.1633,91855.0,91854.0,0.3271]
[1740992738474,0.00190518,91861.0,91860.0,0.03140123]
[1740992738728,0.001,91864.0,91861.0,0.007]
[1740992738957,0.50040123,91869.0,91868.0,0.19467823]
[1740992739174,0.50040123,91869.0,91868.0,0.03140123]
[1740992739599,0.50040123,91869.0,91854.0,0.3271]
[1740992740025,0.217706,91867.0,91854.0,0.3271]
[1740992740247,0.1633,91855.0,91854.0,0.3271]
[1740992740626,0.00190521,91856.0,91837.0,0.077]
[1740992740830,0.163341,91833.0,91832.0,0.0976]
[1740992740994,0.3241,91867.0,91832.0,0.0976]
[1740992741193,0.163339,91833.0,91832.0,0.0976]
[1740992741452,0.08532358,91866.0,91824.0,0.3271]
[1740992741453,0.00190566,91838.0,91826.0,0.03140123]
[1740992741647,0.16335,91827.0,91826.0,0.03140123]
[1740992741848,0.163347,91829.0,91828.0,0.03140123]
[1740992742157,0.00230702,91853.0,91833.0,0.03140123]
[1740992742356,0.163318,91845.0,91833.0,0.03140123]
[1740992742563,0.00190552,91844.0,91833.0,0.03140123]
[1740992743055,0.00190553,91843.0,91833.0,0.03140123]
[1740992743304,0.00040123,91853.0,91840.0,0.03040123]
[1740992743531,0.00040123,91853.0,91844.0,0.03040123]
[1740992743736,0.00040123,91853.0,91828.0,0.007]
[1740992743737,0.163347,91829.0,91828.0,0.007]
[1740992744090,0.163347,91829.0,91828.0,0.006]
[1740992744472,0.00190575,91830.0,91828.0,0.006]
[1740992744673,0.163325,91841.0,91840.0,0.003]
[1740992744862,0.163325,91841.0,91817.0,0.03040123]
[1740992744863,0.163357,91824.0,91818.0,0.00640123]
[1740992745066,0.163361,91821.0,91818.0,0.00640123]
[1740992745265,0.163375,91813.0,91812.0,0.3271]
[1740992745464,0.0019059,91820.0,91813.0,0.00640123]
[1740992745753,0.01454085,91844.0,91812.0,0.3271]
[1740992745865,0.217829,91815.0,91812.0,0.00640123]
[1740992746073,0.0019061,91843.0,91819.0,0.00640123]
[1740992746274,0.16336,91822.0,91819.0,0.00640123]
[1740992746529,0.0019061,91843.0,91819.0,0.00640123]
[1740992746530,0.163356,91824.0,91819.0,0.00640123]
[1740992746964,0.00190592,91829.0,91819.0,0.00640123]
[1740992747232,0.163359,91822.0,91821.0,0.00640123]
[1740992747487,0.3,91851.0,91819.0,0.00012039]
[1740992747488,0.163363,91820.0,91819.0,0.00012039]
[1740992747662,0.16425461,91813.0,91812.0,0.007]
[1740992747918,0.00190618,91813.0,91806.0,0.00640123]
[1740992748154,0.00190618,91813.0,91799.0,0.3271]
[1740992748371,0.001,91824.0,91799.0,0.4905]
[1740992748604,0.163379,91811.0,91799.0,0.3271]
[1740992748890,0.00180068,91810.0,91800.0,0.217864]
[1740992749102,0.00180068,91810.0,91799.0,0.3271]